[Event "*** SCC Grand Prix: Titled Tuesday Blitz"]
[Site "Chess.com"]
[Date "2020.08.25"]
[Round "4"]
[White "googlegoom"]
[Black "kidagent"]
[Result "1-0"]
[WhiteElo "2445"]
[BlackElo "2253"]
[TimeControl "180+1"]
[EndTime "10:42:11 PDT"]
[Termination "googlegoom won by resignation"]

1. Nf3 {[%clk 0:03:00.9]} 1... Nf6 {[%clk 0:02:59.2]} 2. b3 {[%clk 0:03:00.2]}
2... d5 {[%clk 0:02:57.6]} 3. Bb2 {[%clk 0:03:00.3]} 3... c5 {[%clk 0:02:57]} 4.
e3 {[%clk 0:03:00.6]} 4... Nc6 {[%clk 0:02:56.3]} 5. Be2 {[%clk 0:03:00.6]} 5...
Bg4 {[%clk 0:02:52.9]} 6. O-O {[%clk 0:02:59.3]} 6... e6 {[%clk 0:02:53]} 7. d4
{[%clk 0:02:59.3]} 7... cxd4 {[%clk 0:02:51.6]} 8. Nxd4 {[%clk 0:02:59.7]} 8...
Bxe2 {[%clk 0:02:50.8]} 9. Qxe2 {[%clk 0:03:00.6]} 9... Bd6 {[%clk 0:02:47]} 10.
Nd2 {[%clk 0:03:00.4]} 10... O-O {[%clk 0:02:45.1]} 11. c4 {[%clk 0:03:00.3]}
11... Qe7 {[%clk 0:02:30.1]} 12. Rfd1 {[%clk 0:02:54.1]} 12... Rad8 {[%clk
0:02:25.9]} 13. h3 {[%clk 0:02:50.8]} 13... Nxd4 {[%clk 0:02:22.5]} 14. Bxd4
{[%clk 0:02:50.4]} 14... a6 {[%clk 0:02:19.4]} 15. Bxf6 {[%clk 0:02:37.4]} 15...
Qxf6 {[%clk 0:02:18.5]} 16. cxd5 {[%clk 0:02:37.9]} 16... exd5 {[%clk
0:02:19.1]} 17. Nf3 {[%clk 0:02:38.2]} 17... Bb8 {[%clk 0:02:14.2]} 18. Rac1
{[%clk 0:02:37]} 18... Rfe8 {[%clk 0:02:13.8]} 19. Rc2 {[%clk 0:02:34.2]} 19...
h6 {[%clk 0:02:06.3]} 20. Rcd2 {[%clk 0:02:31.6]} 20... Qe6 {[%clk 0:01:51.4]}
21. Qd3 {[%clk 0:02:31.5]} 21... Re7 {[%clk 0:01:39.1]} 22. Qd4 {[%clk 0:02:26]}
22... Red7 {[%clk 0:01:34.8]} 23. Qa4 {[%clk 0:02:15.6]} 23... b5 {[%clk
0:01:32.1]} 24. Qa5 {[%clk 0:02:04.2]} 24... Bc7 {[%clk 0:01:31.9]} 25. Qc3
{[%clk 0:02:00.8]} 25... Bb6 {[%clk 0:01:29.2]} 26. Nd4 {[%clk 0:01:43.7]} 26...
Qf6 {[%clk 0:01:25.9]} 27. Qd3 {[%clk 0:01:36]} 27... Rc8 {[%clk 0:01:13.9]} 28.
a4 {[%clk 0:01:18.4]} 28... bxa4 {[%clk 0:01:07.8]} 29. Qxa6 {[%clk 0:01:13.7]}
29... Rb8 {[%clk 0:00:51.6]} 30. Qxa4 {[%clk 0:01:11.6]} 30... Ra7 {[%clk
0:00:51]} 31. Qb4 {[%clk 0:01:05.1]} 31... Bc7 {[%clk 0:00:37.3]} 32. Qc5 {[%clk
0:00:59.2]} 32... Bb6 {[%clk 0:00:33.3]} 33. Qc2 {[%clk 0:00:46.2]} 33... Rc7
{[%clk 0:00:29.2]} 34. Qb1 {[%clk 0:00:38.5]} 34... Bxd4 {[%clk 0:00:17.6]} 35.
Rxd4 {[%clk 0:00:37.7]} 35... Rcb7 {[%clk 0:00:18.3]} 36. R1d3 {[%clk
0:00:23.7]} 36... Rb5 {[%clk 0:00:18.2]} 37. Rxd5 {[%clk 0:00:22.5]} 37... Rxd5
{[%clk 0:00:17.5]} 38. Rxd5 {[%clk 0:00:22.3]} 38... Qe6 {[%clk 0:00:16.8]} 39.
Rd3 {[%clk 0:00:21.6]} 39... Rb6 {[%clk 0:00:14.9]} 40. b4 {[%clk 0:00:20.7]}
40... g6 {[%clk 0:00:14.9]} 41. b5 {[%clk 0:00:20.9]} 41... Qf5 {[%clk
0:00:13.5]} 42. Rb3 {[%clk 0:00:20.1]} 42... Qxb1+ {[%clk 0:00:12.5]} 43. Rxb1
{[%clk 0:00:20]} 43... Kf8 {[%clk 0:00:13.4]} 44. Kf1 {[%clk 0:00:20.6]} 44...
Ke7 {[%clk 0:00:14.3]} 45. Ke2 {[%clk 0:00:21.3]} 45... Kd6 {[%clk 0:00:15]} 46.
Kd3 {[%clk 0:00:22]} 46... Kc5 {[%clk 0:00:15.9]} 47. Ke4 {[%clk 0:00:22.5]}
47... Re6+ {[%clk 0:00:13.9]} 48. Kf4 {[%clk 0:00:22.9]} 48... Rf6+ {[%clk
0:00:13.9]} 49. Kg3 {[%clk 0:00:23.2]} 49... Rb6 {[%clk 0:00:14.1]} 50. e4
{[%clk 0:00:21.2]} 50... Kd4 {[%clk 0:00:13.4]} 51. f3 {[%clk 0:00:20.6]} 51...
Ke5 {[%clk 0:00:13.4]} 52. Rb3 {[%clk 0:00:19.9]} 52... g5 {[%clk 0:00:13.4]}
53. Rb4 {[%clk 0:00:19.8]} 53... h5 {[%clk 0:00:11.3]} 54. h4 {[%clk 0:00:19.1]}
54... f6 {[%clk 0:00:10.8]} 55. Kh3 {[%clk 0:00:15.8]} 55... Kf4 {[%clk
0:00:10.6]} 56. Rb3 {[%clk 0:00:12.7]} 56... g4+ {[%clk 0:00:08.7]} 57. Kh2
{[%clk 0:00:09.7]} 57... gxf3 {[%clk 0:00:03]} 58. gxf3 {[%clk 0:00:08.7]} 58...
f5 {[%clk 0:00:03.5]} 59. exf5 {[%clk 0:00:07.8]} 59... Kxf5 {[%clk 0:00:04.4]}
60. Kg3 {[%clk 0:00:08.3]} 60... Ke5 {[%clk 0:00:04.1]} 61. f4+ {[%clk
0:00:08.9]} 61... Kf5 {[%clk 0:00:04.6]} 62. Kf3 {[%clk 0:00:09.3]} 62... Kf6
{[%clk 0:00:02.9]} 63. Ke4 {[%clk 0:00:09.7]} 63... Ke6 {[%clk 0:00:02.2]} 64.
f5+ {[%clk 0:00:09.8]} 64... Kf6 {[%clk 0:00:03]} 65. Kf4 {[%clk 0:00:10.4]}
65... Kf7 {[%clk 0:00:01.9]} 66. Kg5 {[%clk 0:00:10.3]} 66... Kg7 {[%clk
0:00:02.7]} 67. Kxh5 {[%clk 0:00:08.9]} 67... Kf6 {[%clk 0:00:03.6]} 68. Kg4
{[%clk 0:00:09.5]} 68... Ke5 {[%clk 0:00:03.9]} 69. Kg5 {[%clk 0:00:09.9]} 1-0

[Event "*** SCC Grand Prix: Titled Tuesday Blitz"]
[Site "Chess.com"]
[Date "2020.08.25"]
[Round "4"]
[White "zmarian"]
[Black "Chessbard1972"]
[Result "0-1"]
[WhiteElo "2175"]
[BlackElo "2405"]
[TimeControl "180+1"]
[EndTime "10:42:19 PDT"]
[Termination "Chessbard1972 won on time"]

1. g3 {[%clk 0:02:59.3]} 1... Nf6 {[%clk 0:02:48.9]} 2. Bg2 {[%clk 0:02:58.2]}
2... d5 {[%clk 0:02:40.8]} 3. Nf3 {[%clk 0:02:56.9]} 3... g6 {[%clk 0:02:38.6]}
4. O-O {[%clk 0:02:55.9]} 4... Bg7 {[%clk 0:02:38.6]} 5. c4 {[%clk 0:02:56]}
5... c6 {[%clk 0:02:37.8]} 6. Qc2 {[%clk 0:02:49.3]} 6... O-O {[%clk 0:02:36.8]}
7. d3 {[%clk 0:02:48.8]} 7... a5 {[%clk 0:02:34.8]} 8. Nbd2 {[%clk 0:02:44.1]}
8... Na6 {[%clk 0:02:33.4]} 9. a3 {[%clk 0:02:42.6]} 9... Bg4 {[%clk 0:02:29.3]}
10. Rb1 {[%clk 0:02:37.1]} 10... Re8 {[%clk 0:02:17.1]} 11. b4 {[%clk
0:02:31.5]} 11... axb4 {[%clk 0:02:15.3]} 12. axb4 {[%clk 0:02:30.1]} 12... e5
{[%clk 0:02:14.7]} 13. e4 {[%clk 0:02:28.2]} 13... Nc7 {[%clk 0:02:11.6]} 14.
Bb2 {[%clk 0:02:24.6]} 14... d4 {[%clk 0:02:06.6]} 15. Ra1 {[%clk 0:02:23.9]}
15... b5 {[%clk 0:02:03.2]} 16. Rxa8 {[%clk 0:02:15.7]} 16... Qxa8 {[%clk
0:02:00.5]} 17. cxb5 {[%clk 0:02:12.8]} 17... Nxb5 {[%clk 0:01:57.1]} 18. Ra1
{[%clk 0:02:07.6]} 18... Qb7 {[%clk 0:01:42]} 19. Nc4 {[%clk 0:02:05.5]} 19...
Nd7 {[%clk 0:01:29]} 20. Na5 {[%clk 0:02:02.4]} 20... Qb8 {[%clk 0:01:23.5]} 21.
Qxc6 {[%clk 0:01:55.1]} 21... Rc8 {[%clk 0:01:14.5]} 22. Qb7 {[%clk 0:01:49]}
22... Qxb7 {[%clk 0:01:10.6]} 23. Nxb7 {[%clk 0:01:48.5]} 23... Rc2 {[%clk
0:01:11.3]} 24. Rb1 {[%clk 0:01:10.5]} 24... Bf8 {[%clk 0:01:07.3]} 25. Ne1
{[%clk 0:01:04.5]} 25... Rd2 {[%clk 0:00:57.5]} 26. f3 {[%clk 0:00:57.4]} 26...
Be6 {[%clk 0:00:55.4]} 27. Bc1 {[%clk 0:00:47.9]} 27... Rd1 {[%clk 0:00:47.1]}
28. Kf2 {[%clk 0:00:47.1]} 28... Nc3 {[%clk 0:00:45.9]} 29. Ra1 {[%clk 0:00:47]}
29... Bxb4 {[%clk 0:00:40.7]} 30. Nc2 {[%clk 0:00:46.7]} 30... Be7 {[%clk
0:00:36.9]} 31. Bh6 {[%clk 0:00:41.3]} 31... f6 {[%clk 0:00:35.7]} 32. h4 {[%clk
0:00:37.8]} 32... Rxa1 {[%clk 0:00:33.3]} 33. Nxa1 {[%clk 0:00:37.1]} 33... Nc5
{[%clk 0:00:31.7]} 34. Nxc5 {[%clk 0:00:33.9]} 34... Bxc5 {[%clk 0:00:31.5]} 35.
Bc1 {[%clk 0:00:32.2]} 35... f5 {[%clk 0:00:28.2]} 36. Bh3 {[%clk 0:00:30.1]}
36... Kf7 {[%clk 0:00:27.9]} 37. Nb3 {[%clk 0:00:28.5]} 37... fxe4 {[%clk
0:00:27.4]} 38. Bxe6+ {[%clk 0:00:27.1]} 38... Kxe6 {[%clk 0:00:26.8]} 39. fxe4
{[%clk 0:00:27.1]} 39... Bb6 {[%clk 0:00:25.9]} 40. Bh6 {[%clk 0:00:24.8]} 40...
Nd1+ {[%clk 0:00:23.1]} 41. Ke2 {[%clk 0:00:24.2]} 41... Nc3+ {[%clk 0:00:21.7]}
42. Kf2 {[%clk 0:00:24.1]} 42... Kf6 {[%clk 0:00:21]} 43. Nd2 {[%clk 0:00:22.6]}
43... Nd1+ {[%clk 0:00:20]} 44. Ke2 {[%clk 0:00:21.1]} 44... Nc3+ {[%clk
0:00:17.5]} 45. Kf3 {[%clk 0:00:21]} 45... Bc7 {[%clk 0:00:17.6]} 46. Nc4 {[%clk
0:00:20.4]} 46... Ke6 {[%clk 0:00:17.4]} 47. Bg7 {[%clk 0:00:20.1]} 47... Na4
{[%clk 0:00:16.5]} 48. Bh6 {[%clk 0:00:18.8]} 48... Nc5 {[%clk 0:00:16.4]} 49.
Ke2 {[%clk 0:00:18]} 49... Na4 {[%clk 0:00:16.2]} 50. Bd2 {[%clk 0:00:17.1]}
50... Nc5 {[%clk 0:00:15.1]} 51. Be1 {[%clk 0:00:16]} 51... Nb3 {[%clk
0:00:14.9]} 52. Bb4 {[%clk 0:00:14.6]} 52... Bd8 {[%clk 0:00:14.5]} 53. Be1
{[%clk 0:00:12.9]} 53... Be7 {[%clk 0:00:14.1]} 54. Bd2 {[%clk 0:00:12.4]} 54...
Nc5 {[%clk 0:00:13.3]} 55. Nb6 {[%clk 0:00:11.5]} 55... Nb3 {[%clk 0:00:12.6]}
56. Nd5 {[%clk 0:00:11]} 56... Bd8 {[%clk 0:00:12.6]} 57. Bb4 {[%clk 0:00:08.9]}
57... Na1 {[%clk 0:00:09.3]} 58. Bd2 {[%clk 0:00:06.7]} 58... h5 {[%clk
0:00:08.5]} 59. Nb4 {[%clk 0:00:05.9]} 59... Nb3 {[%clk 0:00:07.4]} 60. Nc2
{[%clk 0:00:05.6]} 60... Be7 {[%clk 0:00:06.6]} 61. Ne1 {[%clk 0:00:05.5]} 61...
Nc5 {[%clk 0:00:06]} 62. Nf3 {[%clk 0:00:05]} 62... Nb3 {[%clk 0:00:05.1]} 63.
Bg5 {[%clk 0:00:04.6]} 63... Na1 {[%clk 0:00:04.2]} 64. Bxe7 {[%clk 0:00:04.3]}
64... Kxe7 {[%clk 0:00:04.6]} 65. Nxe5 {[%clk 0:00:04.7]} 65... Ke6 {[%clk
0:00:04.9]} 66. Nxg6 {[%clk 0:00:04.6]} 66... Kf6 {[%clk 0:00:05.6]} 67. Nf4
{[%clk 0:00:04.8]} 67... Nc2 {[%clk 0:00:05.6]} 68. Nxh5+ {[%clk 0:00:04.3]}
68... Kg6 {[%clk 0:00:05.8]} 69. Nf4+ {[%clk 0:00:04.4]} 69... Kf6 {[%clk
0:00:06.7]} 70. Nd5+ {[%clk 0:00:03.7]} 70... Ke5 {[%clk 0:00:07.6]} 71. Nf4
{[%clk 0:00:02.9]} 71... Na3 {[%clk 0:00:08.5]} 72. h5 {[%clk 0:00:02.9]} 72...
Nb5 {[%clk 0:00:09.4]} 73. h6 {[%clk 0:00:02.2]} 73... Nc3+ {[%clk 0:00:10.3]}
0-1

[Event "*** SCC Grand Prix: Titled Tuesday Blitz"]
[Site "Chess.com"]
[Date "2020.08.25"]
[Round "4"]
[White "tigra"]
[Black "Thee-Chessboy"]
[Result "1-0"]
[WhiteElo "2892"]
[BlackElo "2526"]
[TimeControl "180+1"]
[EndTime "10:42:23 PDT"]
[Termination "tigra won by resignation"]

1. e4 {[%clk 0:03:00.9]} 1... c5 {[%clk 0:02:59.4]} 2. Nf3 {[%clk 0:03:00]} 2...
d6 {[%clk 0:02:59.8]} 3. d4 {[%clk 0:03:00.7]} 3... cxd4 {[%clk 0:03:00.7]} 4.
Nxd4 {[%clk 0:03:01.6]} 4... Nf6 {[%clk 0:03:01.1]} 5. Nc3 {[%clk 0:03:01.9]}
5... a6 {[%clk 0:03:01.3]} 6. Be2 {[%clk 0:03:02.6]} 6... e5 {[%clk 0:03:00.2]}
7. Nb3 {[%clk 0:03:02.9]} 7... Be7 {[%clk 0:02:59.8]} 8. O-O {[%clk 0:03:03]}
8... O-O {[%clk 0:02:59.8]} 9. Bf3 {[%clk 0:03:03.2]} 9... Be6 {[%clk
0:02:58.4]} 10. Qe2 {[%clk 0:03:03.1]} 10... Nbd7 {[%clk 0:02:56.7]} 11. Rd1
{[%clk 0:03:03.1]} 11... Rc8 {[%clk 0:02:53.8]} 12. Nd2 {[%clk 0:03:00.7]} 12...
b5 {[%clk 0:02:50.4]} 13. a3 {[%clk 0:03:01.1]} 13... Nb6 {[%clk 0:02:43.2]} 14.
Nf1 {[%clk 0:03:01.2]} 14... Nc4 {[%clk 0:02:39.3]} 15. b3 {[%clk 0:02:55.1]}
15... Nxa3 {[%clk 0:02:10]} 16. Bxa3 {[%clk 0:02:50.1]} 16... Rxc3 {[%clk
0:02:09.6]} 17. Bb2 {[%clk 0:02:50.8]} 17... Rc5 {[%clk 0:02:04.5]} 18. b4
{[%clk 0:02:32.3]} 18... Rc6 {[%clk 0:01:45.5]} 19. Ne3 {[%clk 0:02:28.3]} 19...
Qc7 {[%clk 0:01:39.3]} 20. h3 {[%clk 0:02:26.6]} 20... Rc8 {[%clk 0:01:31.6]}
21. Kh2 {[%clk 0:02:19.7]} 21... g6 {[%clk 0:01:29]} 22. g3 {[%clk 0:02:19.7]}
22... h5 {[%clk 0:01:19.3]} 23. Bg2 {[%clk 0:02:14.8]} 23... h4 {[%clk
0:01:11.6]} 24. g4 {[%clk 0:02:15.1]} 24... Nh7 {[%clk 0:01:10.9]} 25. c3 {[%clk
0:02:13]} 25... Bg5 {[%clk 0:01:03.7]} 26. Nd5 {[%clk 0:02:13.2]} 26... Bxd5
{[%clk 0:00:58]} 27. Rxd5 {[%clk 0:02:14.1]} 27... Rb6 {[%clk 0:00:58.4]} 28.
Rd3 {[%clk 0:02:14.8]} 28... Bf4+ {[%clk 0:00:57.4]} 29. Kh1 {[%clk 0:02:15.2]}
29... Ng5 {[%clk 0:00:54.3]} 30. Qd1 {[%clk 0:02:15.6]} 30... Rc6 {[%clk
0:00:43.6]} 31. Ra5 {[%clk 0:02:14.8]} 31... Qb6 {[%clk 0:00:37.9]} 32. Qe2
{[%clk 0:02:11.2]} 32... Rc4 {[%clk 0:00:32.2]} 33. Ra1 {[%clk 0:02:00.2]} 33...
R8c6 {[%clk 0:00:27.2]} 34. Rd5 {[%clk 0:01:58.2]} 34... Ne6 {[%clk 0:00:24]}
35. Bf1 {[%clk 0:01:54.5]} 35... Bg5 {[%clk 0:00:21.9]} 36. Qf3 {[%clk
0:01:50.6]} 36... Nf4 {[%clk 0:00:20.1]} 37. Bxc4 {[%clk 0:01:49.6]} 37... Rxc4
{[%clk 0:00:20.2]} 38. Rdd1 {[%clk 0:01:47.3]} 38... Qc6 {[%clk 0:00:19.9]} 39.
Re1 {[%clk 0:01:44.9]} 39... Bd8 {[%clk 0:00:16.5]} 40. Ra3 {[%clk 0:01:35.9]}
40... Bb6 {[%clk 0:00:16.3]} 41. Bc1 {[%clk 0:01:36.2]} 41... Ne6 {[%clk
0:00:14.6]} 42. Bd2 {[%clk 0:01:35.3]} 42... Qb7 {[%clk 0:00:14.2]} 43. Ra2
{[%clk 0:01:33.4]} 43... Rc8 {[%clk 0:00:13.6]} 44. Qf6 {[%clk 0:01:25.4]} 44...
Bd8 {[%clk 0:00:12.9]} 45. Qf3 {[%clk 0:01:24.8]} 45... Qc6 {[%clk 0:00:12.6]}
46. Kg2 {[%clk 0:01:22.7]} 46... Bg5 {[%clk 0:00:12.1]} 47. Rd1 {[%clk
0:00:58.1]} 47... Bxd2 {[%clk 0:00:11.3]} 48. Raxd2 {[%clk 0:00:59]} 48... Nf4+
{[%clk 0:00:11.5]} 49. Kg1 {[%clk 0:00:55.7]} 49... Rd8 {[%clk 0:00:12]} 50. Kh2
{[%clk 0:00:52.2]} 50... Kg7 {[%clk 0:00:12.1]} 51. g5 {[%clk 0:00:52.3]} 51...
Qb6 {[%clk 0:00:10.9]} 52. Rg1 {[%clk 0:00:51.8]} 52... Ne6 {[%clk 0:00:11]} 53.
Rg4 {[%clk 0:00:49.8]} 53... Nf4 {[%clk 0:00:10.7]} 54. Rxh4 {[%clk 0:00:48.7]}
54... d5 {[%clk 0:00:10.6]} 55. exd5 {[%clk 0:00:47.7]} 55... Qd6 {[%clk
0:00:10.3]} 56. Qe4 {[%clk 0:00:41.1]} 56... Rc8 {[%clk 0:00:10.1]} 57. Rd1
{[%clk 0:00:30.7]} 57... Rc4 {[%clk 0:00:09.4]} 58. Qe3 {[%clk 0:00:29.2]} 58...
Nh5 {[%clk 0:00:07.7]} 59. Rxc4 {[%clk 0:00:28.5]} 59... bxc4 {[%clk 0:00:08]}
60. Qc5 {[%clk 0:00:28.3]} 60... Qd8 {[%clk 0:00:06.6]} 61. d6 {[%clk
0:00:27.8]} 61... Qxg5 {[%clk 0:00:06.4]} 62. d7 {[%clk 0:00:25.3]} 62... Qf4+
{[%clk 0:00:06]} 63. Kg2 {[%clk 0:00:24.5]} 63... Qg5+ {[%clk 0:00:05.7]} 64.
Kh2 {[%clk 0:00:15.9]} 64... Qf4+ {[%clk 0:00:05.5]} 65. Kg1 {[%clk 0:00:15.5]}
65... Qg5+ {[%clk 0:00:05.8]} 66. Kf1 {[%clk 0:00:15.3]} 66... Nf4 {[%clk
0:00:06.3]} 67. d8=Q {[%clk 0:00:14.8]} 67... Qg2+ {[%clk 0:00:06]} 68. Ke1
{[%clk 0:00:15.3]} 68... Qg1+ {[%clk 0:00:04.5]} 69. Kd2 {[%clk 0:00:15.4]}
69... Qg5 {[%clk 0:00:05.2]} 70. Qcf8+ {[%clk 0:00:13.9]} 1-0

[Event "*** SCC Grand Prix: Titled Tuesday Blitz"]
[Site "Chess.com"]
[Date "2020.08.25"]
[Round "4"]
[White "SilviusTiberius"]
[Black "Legendinunknown"]
[Result "1-0"]
[WhiteElo "2476"]
[BlackElo "2654"]
[TimeControl "180+1"]
[EndTime "10:42:24 PDT"]
[Termination "SilviusTiberius won by resignation"]

1. e4 {[%clk 0:03:00.9]} 1... e5 {[%clk 0:02:59.3]} 2. Nf3 {[%clk 0:03:01.3]}
2... Nc6 {[%clk 0:02:59.9]} 3. Bb5 {[%clk 0:03:01.7]} 3... a6 {[%clk 0:02:59.7]}
4. Ba4 {[%clk 0:03:02.1]} 4... Nf6 {[%clk 0:02:59.9]} 5. O-O {[%clk 0:03:02.5]}
5... Nxe4 {[%clk 0:03:00]} 6. d4 {[%clk 0:03:01.7]} 6... b5 {[%clk 0:02:59.9]}
7. Bb3 {[%clk 0:03:02.1]} 7... d5 {[%clk 0:03:00.6]} 8. dxe5 {[%clk 0:03:02.3]}
8... Be6 {[%clk 0:03:00.1]} 9. Be3 {[%clk 0:03:01.8]} 9... Be7 {[%clk 0:02:57]}
10. Qe2 {[%clk 0:03:01.6]} 10... O-O {[%clk 0:02:56.4]} 11. Rd1 {[%clk
0:03:01.4]} 11... Bc5 {[%clk 0:02:42.9]} 12. c4 {[%clk 0:02:56.6]} 12... bxc4
{[%clk 0:02:41.9]} 13. Bxc4 {[%clk 0:02:56.2]} 13... Bxe3 {[%clk 0:02:42.4]} 14.
Qxe3 {[%clk 0:02:55.8]} 14... Qb8 {[%clk 0:02:42.5]} 15. Bb3 {[%clk 0:02:53.8]}
15... Na5 {[%clk 0:02:40.9]} 16. Nbd2 {[%clk 0:02:53.1]} 16... Qb6 {[%clk
0:02:25.7]} 17. Nxe4 {[%clk 0:02:52.4]} 17... Qxe3 {[%clk 0:02:23.9]} 18. fxe3
{[%clk 0:02:51.3]} 18... Nxb3 {[%clk 0:02:22.1]} 19. axb3 {[%clk 0:02:49.8]}
19... dxe4 {[%clk 0:02:21.2]} 20. Nd4 {[%clk 0:02:50.1]} 20... Rfb8 {[%clk
0:02:08.1]} 21. Rdc1 {[%clk 0:02:47]} 21... Bxb3 {[%clk 0:02:05.7]} 22. Rxc7
{[%clk 0:02:45.8]} 22... Bd5 {[%clk 0:02:05.4]} 23. Ra5 {[%clk 0:02:41.7]} 23...
Be6 {[%clk 0:02:02.8]} 24. Nxe6 {[%clk 0:02:08]} 24... fxe6 {[%clk 0:02:03.7]}
25. Rc6 {[%clk 0:02:08.7]} 25... Rxb2 {[%clk 0:02:02]} 26. Rxe6 {[%clk
0:02:05.7]} 26... Rc8 {[%clk 0:01:56.7]} 27. h4 {[%clk 0:01:44.1]} 27... Rcc2
{[%clk 0:01:56]} 28. Raxa6 {[%clk 0:01:40.2]} 28... Rxg2+ {[%clk 0:01:55.7]} 29.
Kf1 {[%clk 0:01:38.3]} 29... Rgf2+ {[%clk 0:01:55.8]} 30. Kg1 {[%clk 0:01:34.3]}
30... Rfe2 {[%clk 0:01:46.5]} 31. Ra1 {[%clk 0:01:18.9]} 31... Rxe3 {[%clk
0:01:42.6]} 32. Rf1 {[%clk 0:01:13.8]} 32... h5 {[%clk 0:01:38.1]} 33. Rg6
{[%clk 0:01:10.1]} 33... Rh3 {[%clk 0:01:17.3]} 34. e6 {[%clk 0:01:00.7]} 34...
Rb7 {[%clk 0:01:16.1]} 35. Rf4 {[%clk 0:00:44.5]} 35... e3 {[%clk 0:01:14.6]}
36. Re4 {[%clk 0:00:44.5]} 36... Re7 {[%clk 0:01:07.7]} 37. Kg2 {[%clk
0:00:43.7]} 37... Kh7 {[%clk 0:01:00.8]} 38. Rg5 {[%clk 0:00:43.3]} 38... Rxh4
{[%clk 0:00:50.4]} 39. Rxh4 {[%clk 0:00:43.2]} 39... Rxe6 {[%clk 0:00:51.3]} 40.
Rgxh5+ {[%clk 0:00:41.4]} 40... Kg8 {[%clk 0:00:50.7]} 41. Rh8+ {[%clk
0:00:39.9]} 41... Kf7 {[%clk 0:00:50.3]} 42. Rf4+ {[%clk 0:00:39.8]} 42... Kg6
{[%clk 0:00:50.3]} 43. Kf1 {[%clk 0:00:39]} 43... Kg5 {[%clk 0:00:49.3]} 44. Rf3
{[%clk 0:00:38.6]} 44... Kg4 {[%clk 0:00:47.2]} 45. Ke2 {[%clk 0:00:38.3]} 45...
g5 {[%clk 0:00:46.5]} 46. Rxe3 {[%clk 0:00:37.5]} 46... Ra6 {[%clk 0:00:47.1]}
47. Re4+ {[%clk 0:00:36.4]} 47... Kg3 {[%clk 0:00:46.6]} 48. Rg8 {[%clk
0:00:36.7]} 48... Ra5 {[%clk 0:00:46.4]} 49. Rd4 {[%clk 0:00:30]} 49... Re5+
{[%clk 0:00:45.4]} 50. Kf1 {[%clk 0:00:29.4]} 50... Kf3 {[%clk 0:00:43.9]} 51.
Rf8+ {[%clk 0:00:27.3]} 51... Kg3 {[%clk 0:00:43.4]} 52. Rd3+ {[%clk 0:00:25.1]}
52... Kg4 {[%clk 0:00:41.8]} 53. Kg2 {[%clk 0:00:25]} 53... Re2+ {[%clk
0:00:41.3]} 54. Rf2 {[%clk 0:00:25.4]} 54... Re4 {[%clk 0:00:40.6]} 55. Rg3+
{[%clk 0:00:25.5]} 55... Kh4 {[%clk 0:00:39.2]} 56. Rf8 {[%clk 0:00:19.2]} 56...
g4 {[%clk 0:00:37.7]} 57. Rh8+ {[%clk 0:00:18]} 57... Kg5 {[%clk 0:00:37.8]} 58.
Rg8+ {[%clk 0:00:18.3]} 58... Kf5 {[%clk 0:00:36.7]} 59. Ra3 {[%clk 0:00:17.4]}
59... Kf4 {[%clk 0:00:33.4]} 60. Rf8+ {[%clk 0:00:15.8]} 60... Kg5 {[%clk
0:00:30.6]} 61. Kg3 {[%clk 0:00:15.6]} 61... Rb4 {[%clk 0:00:26.8]} 62. Ra5+
{[%clk 0:00:15.7]} 62... Kg6 {[%clk 0:00:26.9]} 63. Rf4 {[%clk 0:00:15.4]} 63...
Rb1 {[%clk 0:00:26]} 64. Kxg4 {[%clk 0:00:15.6]} 64... Rg1+ {[%clk 0:00:24.8]}
65. Kf3 {[%clk 0:00:14.8]} 65... Rf1+ {[%clk 0:00:25.1]} 66. Kg3 {[%clk
0:00:15.2]} 66... Rg1+ {[%clk 0:00:23.6]} 67. Kf2 {[%clk 0:00:15.6]} 67... Rc1
{[%clk 0:00:24.1]} 68. Ra3 {[%clk 0:00:15.8]} 68... Kg5 {[%clk 0:00:22.3]} 69.
Rf8 {[%clk 0:00:15.1]} 69... Rc2+ {[%clk 0:00:22.5]} 70. Kg3 {[%clk 0:00:15.4]}
70... Rc5 {[%clk 0:00:20.4]} 71. Kh3 {[%clk 0:00:13.2]} 71... Kh6 {[%clk
0:00:18.3]} 72. Rg3 {[%clk 0:00:13.5]} 72... Kh7 {[%clk 0:00:18.6]} 73. Rf4
{[%clk 0:00:13.5]} 73... Rh5+ {[%clk 0:00:16]} 74. Rh4 {[%clk 0:00:13.9]} 1-0